[Event "Titled Tuesday Blitz December 20 Early 2022"]
[White "Coda, Carlos"]
[Black "Kukku, Ramesh"]
[WhiteFideId "110329"]
[BlackFideId "25695606"]
[WhiteElo "1971"]
[BlackElo "1575"]
[Result "1/2-1/2"]
[Round "09"]
[TimeControl "180+2"]
[Date "2022.12.20"]
[WhiteClock "0:00:48"]
[BlackClock "0:00:34"]

1. d4 {[%clk 0:02:57]}  c5 {[%clk 0:02:59]} 2. d5 {[%clk 0:02:57]}  Nf6 {[%clk 0:02:57]} 3. Nc3 {[%clk 0:02:54]}  Qa5 {[%clk 0:02:56]} 4. Nf3 {[%clk 0:02:47]}  b5 {[%clk 0:02:54]} 5. e3 {[%clk 0:02:24]}  b4 {[%clk 0:02:51]} 6. Ne2 {[%clk 0:02:24]}  Ba6 {[%clk 0:02:41]} 7. Ng3 {[%clk 0:02:20]}  Bxf1 {[%clk 0:02:37]} 8. Nxf1 {[%clk 0:02:18]}  g6 {[%clk 0:02:34]} 9. Ng3 {[%clk 0:02:18]}  Qa6 {[%clk 0:02:31]} 10. Ne2 {[%clk 0:02:13]}  Bg7 {[%clk 0:02:29]} 11. O-O {[%clk 0:02:12]}  O-O {[%clk 0:02:26]} 12. a3 {[%clk 0:02:11]}  bxa3 {[%clk 0:02:21]} 13. Rxa3 {[%clk 0:02:11]}  Qb7 {[%clk 0:02:20]} 14. Nc3 {[%clk 0:02:05]}  d6 {[%clk 0:02:20]} 15. e4 {[%clk 0:02:03]}  Nbd7 {[%clk 0:02:09]} 16. Rb3 {[%clk 0:02:00]}  Qa6 {[%clk 0:01:49]} 17. Ra3 {[%clk 0:01:55]}  Qb7 {[%clk 0:01:47]} 18. Rb3 {[%clk 0:01:55]}  Qa6 {[%clk 0:01:45]} 19. Bf4 {[%clk 0:01:54]}  Rfb8 {[%clk 0:01:37]} 20. Re1 {[%clk 0:01:41]}  Rxb3 {[%clk 0:01:33]} 21. cxb3 {[%clk 0:01:42]}  Qb6 {[%clk 0:01:05]} 22. e5 {[%clk 0:01:38]}  dxe5 {[%clk 0:01:05]} 23. Nxe5 {[%clk 0:01:36]}  Nxe5 {[%clk 0:01:04]} 24. Bxe5 {[%clk 0:01:36]}  Rd8 {[%clk 0:01:04]} 25. h3 {[%clk 0:01:29]}  Qb7 {[%clk 0:00:58]} 26. Qf3 {[%clk 0:01:20]}  Nxd5 {[%clk 0:00:43]} 27. Bxg7 {[%clk 0:01:16]}  Kxg7 {[%clk 0:00:38]} 28. Nxd5 {[%clk 0:01:01]}  Qxd5 {[%clk 0:00:34]} 29. Qxd5 {[%clk 0:00:59]}  Rxd5 {[%clk 0:00:35]} 30. Rxe7 {[%clk 0:00:59]}  Rd2 {[%clk 0:00:34]} 31. Rxa7 {[%clk 0:00:55]}  Rxb2 {[%clk 0:00:34]} 32. Rc7 {[%clk 0:00:56]}  Rxb3 {[%clk 0:00:34]} 33. Rxc5 {[%clk 0:00:56]}  Rb1+ {[%clk 0:00:34]} 34. Kh2 {[%clk 0:00:56]}  Rb2 {[%clk 0:00:35]} 35. Kg3 {[%clk 0:00:57]}  h5 {[%clk 0:00:34]} 36. Rc3 {[%clk 0:00:55]}  Rb4 {[%clk 0:00:33]} 37. Ra3 {[%clk 0:00:55]}  Rc4 {[%clk 0:00:33]} 38. f3 {[%clk 0:00:56]}  Rb4 {[%clk 0:00:33]} 39. h4 {[%clk 0:00:56]}  Rc4 {[%clk 0:00:33]} 40. Kh3 {[%clk 0:00:57]}  Rb4 {[%clk 0:00:33]} 41. g4 {[%clk 0:00:57]}  hxg4+ {[%clk 0:00:33]} 42. fxg4 {[%clk 0:00:58]}  Rc4 {[%clk 0:00:34]} 43. Rb3 {[%clk 0:00:57]}  Rd4 {[%clk 0:00:34]} 44. Rc3 {[%clk 0:00:58]}  Rb4 {[%clk 0:00:34]} 45. Kg3 {[%clk 0:00:58]}  Ra4 {[%clk 0:00:34]} 46. Rb3 {[%clk 0:00:58]}  Rc4 {[%clk 0:00:34]} 47. Rb7 {[%clk 0:00:50]}  Rc3+ {[%clk 0:00:33]} 48. Kg2 {[%clk 0:00:50]}  Rc4 {[%clk 0:00:33]} 49. Kf3 {[%clk 0:00:50]}  Rc3+ {[%clk 0:00:33]} 50. Kf4 {[%clk 0:00:50]}  Rc4+ {[%clk 0:00:33]} 51. Kf3 {[%clk 0:00:50]}  Rc3+ {[%clk 0:00:33]} 52. Kf2 {[%clk 0:00:50]}  Rc4 {[%clk 0:00:33]} 53. Kg3 {[%clk 0:00:50]}  Rc3+ {[%clk 0:00:33]} 54. Kg2 {[%clk 0:00:50]}  Rc4 {[%clk 0:00:33]} 55. Kh3 {[%clk 0:00:50]}  Rc3+ {[%clk 0:00:33]} 56. Kh2 {[%clk 0:00:51]}  Rc4 {[%clk 0:00:34]} 57. Kg3 {[%clk 0:00:48]} 1/2-1/2


[Site "https://www.chess.com"]

[Event "Titled Tuesday Blitz December 20 Early 2022"]
[White "Derybas, Igor"]
[Black "Witek, Tomasz"]
[WhiteFideId "41846400"]
[BlackFideId "1130056"]
[WhiteElo "1490"]
[BlackElo "2000"]
[Result "1/2-1/2"]
[Round "09"]
[TimeControl "180+2"]
[Date "2022.12.20"]
[WhiteClock "0:00:01"]
[BlackClock "0:00:05"]

1. d4 {[%clk 0:03:00]}  d5 {[%clk 0:02:59]} 2. c4 {[%clk 0:03:00]}  e6 {[%clk 0:02:58]} 3. Nc3 {[%clk 0:03:00]}  c5 {[%clk 0:02:57]} 4. Nf3 {[%clk 0:02:58]}  cxd4 {[%clk 0:02:51]} 5. Nxd4 {[%clk 0:02:57]}  e5 {[%clk 0:02:49]} 6. Ndb5 {[%clk 0:02:47]}  a6 {[%clk 0:02:39]} 7. Qa4 {[%clk 0:02:39]}  Bd7 {[%clk 0:01:34]} 8. Nxd5 {[%clk 0:02:31]}  Bxb5 {[%clk 0:01:29]} 9. cxb5 {[%clk 0:02:29]}  Qxd5 {[%clk 0:01:28]} 10. bxa6+ {[%clk 0:02:29]}  b5 {[%clk 0:00:57]} 11. e4 {[%clk 0:02:06]}  bxa4 {[%clk 0:00:55]} 12. exd5 {[%clk 0:02:06]}  Bb4+ {[%clk 0:00:45]} 13. Kd1 {[%clk 0:02:06]}  Nf6 {[%clk 0:00:39]} 14. a3 {[%clk 0:01:50]}  Bd6 {[%clk 0:00:36]} 15. Bb5+ {[%clk 0:01:41]}  Ke7 {[%clk 0:00:36]} 16. Bxa4 {[%clk 0:01:37]}  Nxa6 {[%clk 0:00:29]} 17. Bc6 {[%clk 0:01:30]}  Rab8 {[%clk 0:00:29]} 18. Re1 {[%clk 0:01:27]}  Rhd8 {[%clk 0:00:24]} 19. b4 {[%clk 0:01:08]}  Nc7 {[%clk 0:00:21]} 20. f4 {[%clk 0:01:04]}  e4 {[%clk 0:00:21]} 21. Bb2 {[%clk 0:01:00]}  Ncxd5 {[%clk 0:00:21]} 22. Bxd5 {[%clk 0:00:58]}  Nxd5 {[%clk 0:00:21]} 23. Rxe4+ {[%clk 0:00:58]}  Kf8 {[%clk 0:00:20]} 24. Ke2 {[%clk 0:00:46]}  Nxf4+ {[%clk 0:00:19]} 25. Kf3 {[%clk 0:00:46]}  Ne6 {[%clk 0:00:17]} 26. h4 {[%clk 0:00:39]}  Be7 {[%clk 0:00:15]} 27. g3 {[%clk 0:00:33]}  h5 {[%clk 0:00:14]} 28. Rae1 {[%clk 0:00:29]}  Rd5 {[%clk 0:00:14]} 29. Re5 {[%clk 0:00:27]}  Rd3+ {[%clk 0:00:13]} 30. R1e3 {[%clk 0:00:26]}  Rxe3+ {[%clk 0:00:08]} 31. Rxe3 {[%clk 0:00:26]}  Rc8 {[%clk 0:00:07]} 32. Rb3 {[%clk 0:00:18]}  Bf6 {[%clk 0:00:05]} 33. Bxf6 {[%clk 0:00:11]}  gxf6 {[%clk 0:00:05]} 34. Ke4 {[%clk 0:00:12]}  Ke7 {[%clk 0:00:04]} 35. a4 {[%clk 0:00:11]}  Rb8 {[%clk 0:00:04]} 36. Kd5 {[%clk 0:00:08]}  Rd8+ {[%clk 0:00:03]} 37. Kc6 {[%clk 0:00:09]}  Rc8+ {[%clk 0:00:03]} 38. Kb7 {[%clk 0:00:08]}  Rc7+ {[%clk 0:00:04]} 39. Kb6 {[%clk 0:00:08]}  Rc1 {[%clk 0:00:04]} 40. a5 {[%clk 0:00:08]}  Nc7 {[%clk 0:00:04]} 41. Re3+ {[%clk 0:00:07]}  Kd6 {[%clk 0:00:04]} 42. Rd3+ {[%clk 0:00:07]}  Nd5+ {[%clk 0:00:04]} 43. Kb5 {[%clk 0:00:08]}  Rb1 {[%clk 0:00:05]} 44. Rd4 {[%clk 0:00:08]}  Ke5 {[%clk 0:00:05]} 45. Rc4 {[%clk 0:00:09]}  Kd6 {[%clk 0:00:03]} 46. Rc6+ {[%clk 0:00:07]}  Kd7 {[%clk 0:00:02]} 47. a6 {[%clk 0:00:06]}  Nc7+ {[%clk 0:00:02]} 48. Kb6 {[%clk 0:00:06]}  Nd5+ {[%clk 0:00:02]} 49. Kc5 {[%clk 0:00:06]}  Nxb4 {[%clk 0:00:02]} 50. Rd6+ {[%clk 0:00:04]}  Kc7 {[%clk 0:00:02]} 51. Rxf6 {[%clk 0:00:05]}  Nd3+ {[%clk 0:00:01]} 52. Kd4 {[%clk 0:00:05]}  Nb4 {[%clk 0:00:01]} 53. Rxf7+ {[%clk 0:00:05]}  Kb6 {[%clk 0:00:02]} 54. a7 {[%clk 0:00:05]}  Ra1 {[%clk 0:00:02]} 55. Ke5 {[%clk 0:00:04]}  Nc6+ {[%clk 0:00:02]} 56. Kf5 {[%clk 0:00:04]}  Nxa7 {[%clk 0:00:02]} 57. Kg5 {[%clk 0:00:03]}  Ra5+ {[%clk 0:00:03]} 58. Rf5 {[%clk 0:00:03]}  Nc6 {[%clk 0:00:04]} 59. Rxa5 {[%clk 0:00:03]}  Kxa5 {[%clk 0:00:04]} 60. Kxh5 {[%clk 0:00:01]}  Kb5 {[%clk 0:00:05]} 1/2-1/2


[Site "https://www.chess.com"]

[Event "Titled Tuesday Blitz December 20 Early 2022"]
[White "Diaz Argandona, Balack Leo"]
[Black "Flaccidmoves"]
[WhiteFideId "3847160"]
[WhiteElo "1496"]
[BlackElo "2436"]
[Result "1-0"]
[Round "09"]
[TimeControl "180+2"]
[Date "2022.12.20"]
[WhiteClock "0:00:55"]
[BlackClock "0:00:05"]

1. d4 {[%clk 0:02:53]}  Nf6 {[%clk 0:02:58]} 2. c4 {[%clk 0:02:52]}  g6 {[%clk 0:02:57]} 3. Nc3 {[%clk 0:02:53]}  d5 {[%clk 0:02:57]} 4. cxd5 {[%clk 0:02:54]}  Nxd5 {[%clk 0:02:57]} 5. Bd2 {[%clk 0:02:54]}  Bg7 {[%clk 0:02:56]} 6. e4 {[%clk 0:02:54]}  Nb6 {[%clk 0:02:57]} 7. Be3 {[%clk 0:02:54]}  Nc6 {[%clk 0:02:44]} 8. d5 {[%clk 0:02:50]}  Ne5 {[%clk 0:02:37]} 9. f4 {[%clk 0:02:51]}  Ned7 {[%clk 0:02:31]} 10. Bd4 {[%clk 0:02:51]}  Bxd4 {[%clk 0:02:16]} 11. Qxd4 {[%clk 0:02:52]}  O-O {[%clk 0:02:16]} 12. Nf3 {[%clk 0:02:52]}  c6 {[%clk 0:02:10]} 13. O-O-O {[%clk 0:02:52]}  cxd5 {[%clk 0:02:06]} 14. exd5 {[%clk 0:02:36]}  Nf6 {[%clk 0:02:05]} 15. Ne5 {[%clk 0:02:15]}  Bd7 {[%clk 0:01:43]} 16. Be2 {[%clk 0:02:13]}  Rc8 {[%clk 0:01:42]} 17. Kb1 {[%clk 0:02:14]}  Qc7 {[%clk 0:01:25]} 18. h4 {[%clk 0:02:09]}  h5 {[%clk 0:01:12]} 19. g4 {[%clk 0:02:09]}  Bxg4 {[%clk 0:00:58]} 20. Bxg4 {[%clk 0:02:05]}  hxg4 {[%clk 0:00:57]} 21. h5 {[%clk 0:02:05]}  gxh5 {[%clk 0:00:50]} 22. Rdg1 {[%clk 0:02:01]}  Qc5 {[%clk 0:00:42]} 23. Qd1 {[%clk 0:01:45]}  Nbxd5 {[%clk 0:00:33]} 24. Rxh5 {[%clk 0:01:39]}  Nxc3+ {[%clk 0:00:17]} 25. bxc3 {[%clk 0:01:39]}  Qxg1 {[%clk 0:00:17]} 26. Qxg1 {[%clk 0:01:39]}  Nxh5 {[%clk 0:00:17]} 27. Qxg4+ {[%clk 0:01:39]}  Ng7 {[%clk 0:00:18]} 28. c4 {[%clk 0:01:26]}  e6 {[%clk 0:00:17]} 29. Nd7 {[%clk 0:01:26]}  Rfd8 {[%clk 0:00:13]} 30. Nf6+ {[%clk 0:01:24]}  Kf8 {[%clk 0:00:14]} 31. Nh7+ {[%clk 0:01:22]}  Kg8 {[%clk 0:00:13]} 32. Qh4 {[%clk 0:01:21]}  Rd1+ {[%clk 0:00:11]} 33. Kc2 {[%clk 0:01:21]}  Rcd8 {[%clk 0:00:11]} 34. Nf6+ {[%clk 0:01:19]}  Kf8 {[%clk 0:00:12]} 35. Nd5 {[%clk 0:01:15]}  R1xd5 {[%clk 0:00:10]} 36. cxd5 {[%clk 0:01:15]}  Rxd5 {[%clk 0:00:11]} 37. Qh8+ {[%clk 0:01:15]}  Ke7 {[%clk 0:00:12]} 38. Qxg7 {[%clk 0:01:15]}  Rc5+ {[%clk 0:00:09]} 39. Kb3 {[%clk 0:01:14]}  Rb5+ {[%clk 0:00:10]} 40. Kc4 {[%clk 0:01:14]}  Rb6 {[%clk 0:00:10]} 41. Qg5+ {[%clk 0:01:13]}  Ke8 {[%clk 0:00:09]} 42. a4 {[%clk 0:01:13]}  Rc6+ {[%clk 0:00:06]} 43. Kd4 {[%clk 0:01:13]}  Kd7 {[%clk 0:00:05]} 44. Qf6 {[%clk 0:01:11]}  Rd6+ {[%clk 0:00:05]} 45. Kc4 {[%clk 0:01:12]}  Ke8 {[%clk 0:00:05]} 46. Qe5 {[%clk 0:01:10]}  Rc6+ {[%clk 0:00:04]} 47. Kd3 {[%clk 0:01:08]}  Kd7 {[%clk 0:00:05]} 48. Ke4 {[%clk 0:01:05]}  Rd6 {[%clk 0:00:04]} 49. Kf3 {[%clk 0:01:05]}  Rd5 {[%clk 0:00:04]} 50. Qb8 {[%clk 0:01:04]}  Kc6 {[%clk 0:00:04]} 51. Qxa7 {[%clk 0:01:03]}  Rf5 {[%clk 0:00:03]} 52. a5 {[%clk 0:01:00]}  Rb5 {[%clk 0:00:03]} 53. Kg4 {[%clk 0:01:00]}  f6 {[%clk 0:00:03]} 54. Qa8 {[%clk 0:01:00]}  Kd6 {[%clk 0:00:02]} 55. Qd8+ {[%clk 0:00:59]}  Kc5 {[%clk 0:00:02]} 56. Qc7+ {[%clk 0:00:57]}  Kb4 {[%clk 0:00:02]} 57. Qe7+ {[%clk 0:00:53]}  Kxa5 {[%clk 0:00:01]} 58. Qxf6 {[%clk 0:00:54]}  b6 {[%clk 0:00:01]} 59. Qxe6 {[%clk 0:00:54]}  Ka4 {[%clk 0:00:02]} 60. Qc6 {[%clk 0:00:54]}  Ka5 {[%clk 0:00:02]} 61. f5 {[%clk 0:00:54]}  Rc5 {[%clk 0:00:03]} 62. Qxc5+ {[%clk 0:00:52]}  bxc5 {[%clk 0:00:03]} 63. f6 {[%clk 0:00:53]}  c4 {[%clk 0:00:04]} 64. f7 {[%clk 0:00:54]}  c3 {[%clk 0:00:05]} 65. f8=Q {[%clk 0:00:55]}  Ka4 {[%clk 0:00:04]} 66. Qf1 {[%clk 0:00:54]}  Kb3 {[%clk 0:00:05]} 67. Qc1 {[%clk 0:00:55]} 1-0


[Site "https://www.chess.com"]

[Event "Titled Tuesday Blitz December 20 Early 2022"]
[White "Eloisa Navez, Angel"]
[Black "Alexei_Gubajdullin"]
[WhiteFideId "5117305"]
[WhiteElo "1942"]
[BlackElo "2625"]
[Result "0-1"]
[Round "09"]
[TimeControl "180+2"]
[Date "2022.12.20"]
[WhiteClock "0:00:01"]
[BlackClock "0:00:05"]

1. e4 {[%clk 0:03:00]}  g6 {[%clk 0:02:59]} 2. d4 {[%clk 0:03:00]}  Bg7 {[%clk 0:02:59]} 3. Nc3 {[%clk 0:03:01]}  d6 {[%clk 0:02:59]} 4. Nf3 {[%clk 0:03:01]}  Nf6 {[%clk 0:02:58]} 5. Be2 {[%clk 0:03:01]}  O-O {[%clk 0:02:58]} 6. O-O {[%clk 0:03:01]}  Nc6 {[%clk 0:02:58]} 7. d5 {[%clk 0:03:01]}  Nb8 {[%clk 0:02:58]} 8. Bg5 {[%clk 0:03:00]}  Bg4 {[%clk 0:02:57]} 9. Qd2 {[%clk 0:02:55]}  c6 {[%clk 0:02:54]} 10. h3 {[%clk 0:02:51]}  Bxf3 {[%clk 0:02:53]} 11. Bxf3 {[%clk 0:02:51]}  Qb6 {[%clk 0:02:53]} 12. a4 {[%clk 0:02:47]}  a5 {[%clk 0:02:51]} 13. Be3 {[%clk 0:02:40]}  Qc7 {[%clk 0:02:49]} 14. Rfe1 {[%clk 0:02:37]}  Na6 {[%clk 0:02:47]} 15. Rad1 {[%clk 0:02:30]}  Nd7 {[%clk 0:02:46]} 16. h4 {[%clk 0:02:26]}  Nb4 {[%clk 0:02:36]} 17. h5 {[%clk 0:02:24]}  Ne5 {[%clk 0:02:36]} 18. Be2 {[%clk 0:02:23]}  cxd5 {[%clk 0:02:35]} 19. exd5 {[%clk 0:02:17]}  Nc4 {[%clk 0:02:35]} 20. Bxc4 {[%clk 0:02:16]}  Qxc4 {[%clk 0:02:34]} 21. Bg5 {[%clk 0:02:05]}  Rfe8 {[%clk 0:02:05]} 22. Bxe7 {[%clk 0:01:50]}  Be5 {[%clk 0:02:04]} 23. Rxe5 {[%clk 0:01:29]}  dxe5 {[%clk 0:02:00]} 24. d6 {[%clk 0:01:15]}  Qe6 {[%clk 0:01:59]} 25. Ne4 {[%clk 0:01:11]}  Rxe7 {[%clk 0:01:58]} 26. dxe7 {[%clk 0:01:01]}  Qxe7 {[%clk 0:01:58]} 27. Qh6 {[%clk 0:00:55]}  Rd8 {[%clk 0:01:48]} 28. Rxd8+ {[%clk 0:00:20]}  Qxd8 {[%clk 0:01:43]} 29. hxg6 {[%clk 0:00:19]}  hxg6 {[%clk 0:01:40]} 30. f3 {[%clk 0:00:17]}  Nxc2 {[%clk 0:01:29]} 31. Ng5 {[%clk 0:00:16]}  Qd4+ {[%clk 0:01:22]} 32. Kh1 {[%clk 0:00:15]}  Qf4 {[%clk 0:01:21]} 33. Qh7+ {[%clk 0:00:13]}  Kf8 {[%clk 0:01:21]} 34. Qh8+ {[%clk 0:00:10]}  Ke7 {[%clk 0:01:21]} 35. Ne4 {[%clk 0:00:10]}  Ne3 {[%clk 0:01:15]} 36. Qc8 {[%clk 0:00:08]}  Qh4+ {[%clk 0:01:04]} 37. Kg1 {[%clk 0:00:08]}  Qe1+ {[%clk 0:01:04]} 38. Kh2 {[%clk 0:00:08]}  Nf1+ {[%clk 0:01:00]} 39. Kh3 {[%clk 0:00:08]}  Qe3 {[%clk 0:00:47]} 40. Qc7+ {[%clk 0:00:08]}  Kf8 {[%clk 0:00:47]} 41. Qb8+ {[%clk 0:00:08]}  Ke7 {[%clk 0:00:37]} 42. Qxe5+ {[%clk 0:00:09]}  Kf8 {[%clk 0:00:37]} 43. Qb8+ {[%clk 0:00:09]}  Ke7 {[%clk 0:00:36]} 44. Qe5+ {[%clk 0:00:09]}  Kd7 {[%clk 0:00:25]} 45. Qd5+ {[%clk 0:00:08]}  Kc7 {[%clk 0:00:22]} 46. Qxf7+ {[%clk 0:00:08]}  Kb6 {[%clk 0:00:21]} 47. Qxg6+ {[%clk 0:00:08]}  Ka7 {[%clk 0:00:21]} 48. Qg5 {[%clk 0:00:07]}  Qg1 {[%clk 0:00:19]} 49. Qxa5+ {[%clk 0:00:07]}  Kb8 {[%clk 0:00:18]} 50. Qd8+ {[%clk 0:00:08]}  Ka7 {[%clk 0:00:18]} 51. Qa5+ {[%clk 0:00:07]}  Kb8 {[%clk 0:00:18]} 52. Qe5+ {[%clk 0:00:07]}  Ka7 {[%clk 0:00:18]} 53. Nd6 {[%clk 0:00:06]}  Qh1+ {[%clk 0:00:17]} 54. Kg4 {[%clk 0:00:05]}  Qxg2+ {[%clk 0:00:17]} 55. Kf4 {[%clk 0:00:04]}  Qg3+ {[%clk 0:00:16]} 56. Ke4 {[%clk 0:00:04]}  Nd2+ {[%clk 0:00:16]} 57. Kd5 {[%clk 0:00:04]}  Qg8+ {[%clk 0:00:14]} 58. Kc5 {[%clk 0:00:02]}  Qb3 {[%clk 0:00:09]} 59. Nb5+ {[%clk 0:00:02]}  Ka6 {[%clk 0:00:06]} 60. Qd6+ {[%clk 0:00:02]}  Ka5 {[%clk 0:00:06]} 61. Qxd2+ {[%clk 0:00:02]}  Kxa4 {[%clk 0:00:05]} 62. Nc3+ {[%clk 0:00:01]}  Ka5 {[%clk 0:00:05]} 0-1


[Site "https://www.chess.com"]

[Event "Titled Tuesday Blitz December 20 Early 2022"]
[White "FairChess_on_YouTube"]
[Black "Nakamura, Hikaru"]
[BlackFideId "2016192"]
[WhiteElo "3072"]
[BlackElo "2775"]
[Result "0-1"]
[Round "09"]
[TimeControl "180+2"]
[Date "2022.12.20"]
[WhiteClock "0:00:02"]
[BlackClock "0:00:19"]

1. Nf3 {[%clk 0:02:59]}  Nf6 {[%clk 0:02:48]} 2. c4 {[%clk 0:02:59]}  g6 {[%clk 0:02:44]} 3. b4 {[%clk 0:02:58]}  e6 {[%clk 0:02:42]} 4. a3 {[%clk 0:02:57]}  a5 {[%clk 0:02:41]} 5. b5 {[%clk 0:02:55]}  d5 {[%clk 0:02:34]} 6. Bb2 {[%clk 0:02:51]}  c5 {[%clk 0:02:32]} 7. bxc6 {[%clk 0:02:39]}  bxc6 {[%clk 0:02:31]} 8. e3 {[%clk 0:02:37]}  Bg7 {[%clk 0:02:31]} 9. Be2 {[%clk 0:02:35]}  O-O {[%clk 0:02:30]} 10. O-O {[%clk 0:02:35]}  Nbd7 {[%clk 0:02:29]} 11. Nc3 {[%clk 0:02:26]}  Ba6 {[%clk 0:02:27]} 12. cxd5 {[%clk 0:02:09]}  exd5 {[%clk 0:02:22]} 13. Rc1 {[%clk 0:01:58]}  Bxe2 {[%clk 0:02:08]} 14. Qxe2 {[%clk 0:01:54]}  a4 {[%clk 0:02:06]} 15. Na2 {[%clk 0:01:29]}  c5 {[%clk 0:01:59]} 16. Bxf6 {[%clk 0:01:20]}  Bxf6 {[%clk 0:01:58]} 17. Qb5 {[%clk 0:01:20]}  Qe7 {[%clk 0:01:43]} 18. d4 {[%clk 0:01:12]}  cxd4 {[%clk 0:01:38]} 19. Nb4 {[%clk 0:01:11]}  Rfb8 {[%clk 0:01:00]} 20. Qxd5 {[%clk 0:01:07]}  Nb6 {[%clk 0:01:00]} 21. Qa2 {[%clk 0:01:00]}  dxe3 {[%clk 0:00:39]} 22. Nc6 {[%clk 0:00:59]}  Qe4 {[%clk 0:00:40]} 23. Nxb8 {[%clk 0:00:56]}  Rxb8 {[%clk 0:00:41]} 24. Rfe1 {[%clk 0:00:52]}  Nd5 {[%clk 0:00:38]} 25. Qc2 {[%clk 0:00:37]}  Qxc2 {[%clk 0:00:34]} 26. Rxc2 {[%clk 0:00:37]}  Rb3 {[%clk 0:00:34]} 27. Rc5 {[%clk 0:00:27]}  exf2+ {[%clk 0:00:34]} 28. Kxf2 {[%clk 0:00:28]}  Nf4 {[%clk 0:00:33]} 29. Rc8+ {[%clk 0:00:19]}  Kg7 {[%clk 0:00:34]} 30. Re4 {[%clk 0:00:18]}  Nd3+ {[%clk 0:00:25]} 31. Ke2 {[%clk 0:00:16]}  Rxa3 {[%clk 0:00:26]} 32. g4 {[%clk 0:00:14]}  g5 {[%clk 0:00:26]} 33. h4 {[%clk 0:00:13]}  Nf4+ {[%clk 0:00:25]} 34. Kf2 {[%clk 0:00:11]}  h6 {[%clk 0:00:20]} 35. hxg5 {[%clk 0:00:10]}  hxg5 {[%clk 0:00:21]} 36. Ree8 {[%clk 0:00:09]}  Ra2+ {[%clk 0:00:21]} 37. Kf1 {[%clk 0:00:08]}  Ne6 {[%clk 0:00:22]} 38. Rh8 {[%clk 0:00:06]}  Kg6 {[%clk 0:00:22]} 39. Rcg8+ {[%clk 0:00:05]}  Bg7 {[%clk 0:00:23]} 40. Rh5 {[%clk 0:00:02]}  a3 {[%clk 0:00:21]} 41. Ne5+ {[%clk 0:00:02]}  Kf6 {[%clk 0:00:21]} 42. Nd7+ {[%clk 0:00:02]}  Ke7 {[%clk 0:00:22]} 43. Nb6 {[%clk 0:00:02]}  Rd2 {[%clk 0:00:19]} 44. Nc4 {[%clk 0:00:02]}  a2 {[%clk 0:00:19]} 45. Ra8 {[%clk 0:00:02]}  Rd1+ {[%clk 0:00:19]} 0-1


[Site "https://www.chess.com"]

[Event "Titled Tuesday Blitz December 20 Early 2022"]
[White "FaustinoOro"]
[Black "Brunstein, Sandrine"]
[BlackFideId "625574"]
[WhiteElo "2633"]
[BlackElo "1990"]
[Result "0-1"]
[Round "09"]
[TimeControl "180+2"]
[Date "2022.12.20"]
[WhiteClock "0:00:05"]
[BlackClock "0:00:34"]

1. e4 {[%clk 0:03:00]}  c5 {[%clk 0:02:58]} 2. Nf3 {[%clk 0:03:00]}  e6 {[%clk 0:02:57]} 3. d4 {[%clk 0:02:59]}  cxd4 {[%clk 0:02:58]} 4. Nxd4 {[%clk 0:03:00]}  Nf6 {[%clk 0:02:58]} 5. Nc3 {[%clk 0:03:00]}  Nc6 {[%clk 0:02:59]} 6. Ndb5 {[%clk 0:02:57]}  Bb4 {[%clk 0:02:57]} 7. a3 {[%clk 0:02:57]}  Bxc3+ {[%clk 0:02:58]} 8. Nxc3 {[%clk 0:02:58]}  d5 {[%clk 0:02:58]} 9. exd5 {[%clk 0:02:58]}  exd5 {[%clk 0:02:59]} 10. Bd3 {[%clk 0:02:57]}  O-O {[%clk 0:02:59]} 11. O-O {[%clk 0:02:56]}  Bg4 {[%clk 0:03:00]} 12. f3 {[%clk 0:02:54]}  Bh5 {[%clk 0:03:00]} 13. Ne2 {[%clk 0:02:54]}  Re8 {[%clk 0:02:56]} 14. Kh1 {[%clk 0:02:49]}  Bg6 {[%clk 0:02:56]} 15. b3 {[%clk 0:02:39]}  d4 {[%clk 0:02:46]} 16. Bxg6 {[%clk 0:02:27]}  hxg6 {[%clk 0:02:44]} 17. Qd3 {[%clk 0:02:28]}  Ne5 {[%clk 0:02:26]} 18. Qxd4 {[%clk 0:02:07]}  Nxf3 {[%clk 0:02:26]} 19. Qxd8 {[%clk 0:01:24]}  Raxd8 {[%clk 0:02:27]} 20. Nf4 {[%clk 0:01:19]}  Nd4 {[%clk 0:02:09]} 21. Bb2 {[%clk 0:01:12]}  Nxc2 {[%clk 0:02:07]} 22. Rac1 {[%clk 0:01:11]}  Ne3 {[%clk 0:01:54]} 23. Rfe1 {[%clk 0:01:09]}  Re4 {[%clk 0:01:17]} 24. Nh3 {[%clk 0:00:58]}  Nfg4 {[%clk 0:01:10]} 25. Ng5 {[%clk 0:00:53]}  Re7 {[%clk 0:01:04]} 26. h3 {[%clk 0:00:48]}  Nf2+ {[%clk 0:01:03]} 27. Kg1 {[%clk 0:00:46]}  Nd3 {[%clk 0:01:03]} 28. Rcd1 {[%clk 0:00:33]}  Ree8 {[%clk 0:00:46]} 29. Rxe3 {[%clk 0:00:18]}  Rxe3 {[%clk 0:00:46]} 30. Bc3 {[%clk 0:00:18]}  f6 {[%clk 0:00:41]} 31. Nf3 {[%clk 0:00:17]}  Kf7 {[%clk 0:00:40]} 32. Nd4 {[%clk 0:00:16]}  Nf4 {[%clk 0:00:35]} 33. Ba1 {[%clk 0:00:09]}  Rxb3 {[%clk 0:00:32]} 34. Rc1 {[%clk 0:00:04]}  Rxd4 {[%clk 0:00:31]} 35. Rc7+ {[%clk 0:00:03]}  Ke6 {[%clk 0:00:31]} 36. Bxd4 {[%clk 0:00:04]}  Ne2+ {[%clk 0:00:32]} 37. Kh2 {[%clk 0:00:05]}  Nxd4 {[%clk 0:00:33]} 38. Rxg7 {[%clk 0:00:05]}  g5 {[%clk 0:00:34]} 0-1


[Site "https://www.chess.com"]

[Event "Titled Tuesday Blitz December 20 Early 2022"]
[White "Flawless_Fighter"]
[Black "Ducrest, Pierre"]
[BlackFideId "1303627"]
[WhiteElo "2622"]
[BlackElo "2004"]
[Result "0-1"]
[Round "09"]
[TimeControl "180+2"]
[Date "2022.12.20"]
[WhiteClock "0:00:04"]
[BlackClock "0:00:59"]

1. d4 {[%clk 0:03:00]}  d5 {[%clk 0:02:58]} 2. Nf3 {[%clk 0:03:00]}  e6 {[%clk 0:02:58]} 3. Bf4 {[%clk 0:03:00]}  c5 {[%clk 0:02:55]} 4. e3 {[%clk 0:03:00]}  Nf6 {[%clk 0:02:51]} 5. Nbd2 {[%clk 0:02:59]}  Nc6 {[%clk 0:02:50]} 6. c3 {[%clk 0:02:59]}  Nh5 {[%clk 0:02:50]} 7. Bg5 {[%clk 0:02:58]}  f6 {[%clk 0:02:50]} 8. Bh4 {[%clk 0:02:58]}  g6 {[%clk 0:02:51]} 9. Bd3 {[%clk 0:02:53]}  cxd4 {[%clk 0:02:47]} 10. cxd4 {[%clk 0:02:43]}  Be7 {[%clk 0:02:42]} 11. a3 {[%clk 0:02:24]}  O-O {[%clk 0:02:41]} 12. O-O {[%clk 0:02:21]}  e5 {[%clk 0:02:22]} 13. Be2 {[%clk 0:02:15]}  e4 {[%clk 0:02:18]} 14. Ne1 {[%clk 0:02:11]}  Ng7 {[%clk 0:02:15]} 15. f3 {[%clk 0:02:02]}  g5 {[%clk 0:02:04]} 16. Bf2 {[%clk 0:02:00]}  f5 {[%clk 0:02:03]} 17. b4 {[%clk 0:01:45]}  Be6 {[%clk 0:02:01]} 18. Nb3 {[%clk 0:01:38]}  b6 {[%clk 0:01:58]} 19. Nc2 {[%clk 0:01:31]}  f4 {[%clk 0:01:49]} 20. b5 {[%clk 0:01:27]}  Na5 {[%clk 0:01:40]} 21. Nxa5 {[%clk 0:01:26]}  bxa5 {[%clk 0:01:40]} 22. Qd2 {[%clk 0:01:19]}  Bd6 {[%clk 0:01:33]} 23. fxe4 {[%clk 0:01:08]}  dxe4 {[%clk 0:01:33]} 24. d5 {[%clk 0:01:08]}  f3 {[%clk 0:01:33]} 25. gxf3 {[%clk 0:00:45]}  exf3 {[%clk 0:01:29]} 26. Bc4 {[%clk 0:00:43]}  Bh3 {[%clk 0:01:22]} 27. Nd4 {[%clk 0:00:10]}  Qc7 {[%clk 0:01:19]} 28. Be1 {[%clk 0:00:04]}  Qxc4 {[%clk 0:01:17]} 29. Rc1 {[%clk 0:00:03]}  Qxd5 {[%clk 0:01:17]} 30. Bf2 {[%clk 0:00:02]}  Bxf1 {[%clk 0:01:16]} 31. Rxf1 {[%clk 0:00:02]}  Rae8 {[%clk 0:01:14]} 32. Rd1 {[%clk 0:00:02]}  Qe4 {[%clk 0:01:11]} 33. Qb2 {[%clk 0:00:02]}  Qe5 {[%clk 0:01:07]} 34. Qb3+ {[%clk 0:00:02]}  Kh8 {[%clk 0:01:06]} 35. Bg3 {[%clk 0:00:02]}  f2+ {[%clk 0:01:03]} 36. Kf1 {[%clk 0:00:03]}  Qe4 {[%clk 0:00:59]} 37. Bxd6 {[%clk 0:00:03]}  Qh1+ {[%clk 0:00:59]} 38. Ke2 {[%clk 0:00:03]}  f1=Q+ {[%clk 0:00:59]} 39. Rxf1 {[%clk 0:00:04]}  Qxf1+ {[%clk 0:00:59]} 40. Kd2 {[%clk 0:00:05]}  Rf2+ {[%clk 0:00:59]} 41. Kc3 {[%clk 0:00:04]}  Rxe3# {[%clk 0:00:59]} 0-1


[Site "https://www.chess.com"]